Workbook

Sheet Лист1
M1: УТВЕРЖДАЮ:
A2: 11 группа: сады № 28, 30, 34, 40, 50, 50(ф), 51, 52, 54, 93, 103, 110 | M2: Главный специалист отдела
A3: 12 группа: сады № 7, 12, 14, 18, 21, 29, 31, 35, 39, 46, 97, 106, 115 | M3: дошкольного образования
A4: 14 группа: сады № 10, 17, 20, 26, 49, 64, 72, 73, 75, 92, 96, 105, 120 | S4: Фатхуллина Г.А.
A5: 17 группа: сады № 41, 44, 53, 61, 78, 80, 83, 94, 98, 104, 111, 114
A6: 18 группа: сады № 8, 9, 16, 27, 62, 65, 66, 82, 86, 108, 109, 118
M7: 2,4 группа
A8: НЕДЕЛЬНОЕ МЕНЮ ДЛЯ ОБЩЕРАЗВИВАЮЩИХ ДЕТСКИХ САДОВ С 30.07.18 г по 03.08.18 г
A10: № рец. | B10: Прием пищи, наименование блюда | C10: Масса порции | E10: Цена | G10: Пищевые вещества (г) | M10: Энерг. ценность (ккал) | O10: Витамины (мг) | U10: Минеральные вещества (мг)
G11: Белки | I11: Жиры | K11: Углеводы | O11: В1 | Q11: В2 | S11: С | U11: Ca | W11: Fe
A12: № рец. | B12: ПОНЕДЕЛЬНИК 30.07 | C12: сад | D12: ясли | E12: сад | F12: ясли | G12: сад | H12: ясли | I12: сад | J12: ясли | K12: сад | L12: ясли | M12: сад | N12: ясли | O12: сад | P12: ясли | Q12: сад | R12: ясли | S12: сад | T12: ясли | U12: сад | V12: ясли | W12: сад | X12: ясли
B13: Завтрак
A14: 3./04 | B14: Батон с маслом с сыром | C14: 20/5/5 | D14: 20/5/5 | E14: 6.68 | F14: 6.68 | G14: 2.93 | H14: 2.93 | I14: 6.05 | J14: 6.05 | K14: 10.40 | L14: 10.40 | M14: 107.77 | N14: 107.77 | O14: 0.08 | P14: =O14*40/60 -> 0.05 | Q14: 0.06 | R14: =Q14*40/60 -> 0.04 | S14: 0.14 | T14: 0.14 | U14: 13.60 | V14: 8.60 | W14: 0.81 | X14: 0.49
A15: 510./04 | B15: Каша ячневая вязкая | C15: 200 | D15: 150 | E15: 4.33 | F15: 3.25 | G15: 4.20 | H15: 3.15 | I15: 8.00 | J15: 6.00 | K15: 28.40 | L15: =K15*150/200 -> 21.30 | M15: 202.40 | N15: 151.80 | O15: 0.03 | P15: =O15*125/150 -> 0.03 | Q15: 0.02 | R15: =Q15*125/150 -> 0.02 | S15: 0.00 | T15: =S15*125/150 -> 0.00 | U15: 13.28 | V15: =U15*125/150 -> 11.07 | W15: 1.07 | X15: =W15*125/150 -> 0.89
A16: 648./04 | B16: Кисель | C16: 200 | D16: 150 | E16: 1.89 | F16: 1.42 | G16: 0.00 | H16: 0.00 | I16: 0.00 | J16: =I16*150/200 -> 0.00 | K16: 30.60 | L16: =K16*150/200 -> 22.95 | M16: 118.00 | N16: 88.50 | O16: 0.00 | P16: =O16*150/200 -> 0.00 | Q16: 0.00 | R16: =Q16*150/200 -> 0.00 | S16: 0.00 | T16: =S16*150/200 -> 0.00 | U16: =V16*200/150 -> 0.20 | V16: 0.15 | W16: =X16*200/150 -> 0.03 | X16: 0.02
B17: Итого | E17: =SUM(E14:E16) -> 12.90 | F17: =SUM(F14:F16) -> 11.35 | G17: =SUM(G14:G16) -> 7.13 | H17: 6.08 | I17: 14.05 | J17: 12.05 | K17: 69.40 | L17: 54.65 | M17: 428.17 | N17: 348.07 | O17: 0.11 | P17: 0.08 | Q17: 0.08 | R17: 0.06 | S17: 0.14 | T17: 0.14 | U17: =SUM(U14:U16) -> 27.08 | V17: =SUM(V14:V16) -> 19.82 | W17: =SUM(W14:W16) -> 1.91 | X17: =SUM(X14:X16) -> 1.40 | Y17: =SUM(Y14:Y16) -> 0.00
B18: 2 Завтрак
A19: 707./04 | B19: Сок разливной | C19: 170 | D19: 170 | E19: 4.80 | F19: 4.80 | G19: 0.00 | H19: 0.00 | I19: =J19*180/150 -> 0.00 | J19: 0.00 | K19: 10.20 | L19: 10.20 | M19: 40.80 | N19: 40.80 | O19: =P19*180/150 -> 0.00 | P19: 0.00 | Q19: =R19*180/150 -> 0.02 | R19: 0.02 | S19: 3.40 | T19: 3.40 | U19: =V19*180/150 -> 10.00 | V19: 8.33 | W19: =X19*180/150 -> 0.25 | X19: 0.21
B20: Итого | E20: =SUM(E19) -> 4.80 | F20: =SUM(F19) -> 4.80 | G20: =SUM(G19) -> 0.00 | H20: 0.00 | I20: 0.00 | J20: 0.00 | K20: 10.20 | L20: 10.20 | M20: 40.80 | N20: 40.80 | O20: 0.00 | P20: 0.00 | Q20: 0.02 | R20: 0.02 | S20: 3.40 | T20: 3.40 | U20: =SUM(U19) -> 10.00 | V20: =SUM(V19) -> 8.33 | W20: =SUM(W19) -> 0.25 | X20: =SUM(X19) -> 0.21 | Y20: =SUM(Y19) -> 0.00
B21: Обед
A22: 612/04 | B22: Маринад овощной | C22: 50 | D22: 45 | E22: 3.04 | F22: 2.74 | G22: 0.40 | H22: =G22*45/50 -> 0.36 | I22: 5.00 | J22: =I22*45/50 -> 4.50 | K22: 4.80 | L22: =K22*45/50 -> 4.32 | M22: 65.80 | N22: =M22*45/50 -> 59.22 | O22: 0.04 | P22: =O22*45/60 -> 0.03 | Q22: 0.01 | R22: =Q22*45/60 -> 0.01 | S22: 2.55 | T22: =S22*45/50 -> 2.30 | U22: 13.18 | V22: =U22*45/60 -> 9.89 | W22: 0.62 | X22: =W22*45/60 -> 0.47
A23: ТТК-425 | B23: Суп "Гречишное зёрнышко" | C23: 200 | D23: 150 | E23: 4.45 | F23: 3.34 | G23: 1.98 | H23: 1.48 | I23: 2.42 | J23: 1.81 | K23: 13.68 | L23: 10.26 | M23: 84.42 | N23: 63.25 | O23: 0.11 | P23: 0.09 | Q23: 0.05 | R23: 0.04 | S23: 6.6 | T23: 4.9 | U23: 20.26 | V23: 19.08 | W23: 1.00 | X23: 0.97
A24: ТТК-400 | B24: Капуста тушеная с мясом | C24: 50/150 | D24: 50/150 | E24: 38.90 | F24: 38.90 | G24: 12.14 | H24: 12.14 | I24: 8.96 | J24: 8.96 | K24: 9.40 | L24: 9.40 | M24: 166.80 | N24: 166.80 | O24: 0.20 | P24: 0.15 | Q24: 0.18 | R24: 0.11 | S24: 24.50 | T24: 24.50 | U24: 116.61 | V24: 91.87 | W24: 4.50 | X24: 3.19
A25: ТТК-317 | B25: Напиток "Фруктовый" из сухофруктов | C25: 200 | D25: 150 | E25: 1.62 | F25: 1.22 | G25: 0.60 | H25: =G25*150/200 -> 0.45 | I25: 0.00 | J25: =I25*150/200 -> 0.00 | K25: 31.40 | L25: =K25*150/200 -> 23.55 | M25: 124.00 | N25: =M25*150/200 -> 93.00 | O25: 0.02 | P25: =O25*150/200 -> 0.02 | Q25: 0.03 | R25: =Q25*150/200 -> 0.02 | S25: 0.45 | T25: =S25*150/200 -> 0.34 | U25: 12.30 | V25: =U25*150/200 -> 9.23 | W25: 2.00 | X25: =W25*150/200 -> 1.50
B26: Хлеб "Рябинушка" | C26: 1/20 | D26: 1/20 | E26: 1.11 | F26: 1.11 | G26: 1.60 | H26: 1.60 | I26: 0.40 | J26: 0.40 | K26: 10.00 | L26: 10.00 | M26: 54.00 | N26: 54.00 | O26: 0.04 | P26: 0.04 | Q26: 0.02 | R26: 0.02 | S26: 0.00 | T26: 0.00 | U26: 7.40 | V26: 7.40 | W26: 0.56 | X26: 0.56
B27: Хлеб "Дарницкий" | C27: 1/46,4 | D27: 1/40,6 | E27: 2.09 | F27: 1.83 | G27: 3.25 | H27: 2.84 | I27: 0.46 | J27: =I27*40.6/46 -> 0.41 | K27: 20.88 | L27: 18.27 | M27: 102.08 | N27: 89.32 | O27: 0.06 | P27: 0.04 | Q27: 0.04 | R27: 0.03 | S27: 0.00 | T27: =S27*40.6/46 -> 0.00 | U27: 17.00 | V27: 13.60 | W27: 1.15 | X27: 0.92
B28: Итого | E28: =SUM(E22:E27) -> 51.21 | F28: =SUM(F22:F27) -> 49.14 | G28: =SUM(G22:G27) -> 19.97 | H28: =SUM(H22:H27) -> 18.87 | I28: =SUM(I22:I27)+2 -> 19.24 | J28: =SUM(J22:J27)+0 -> 16.08 | K28: =SUM(K22:K27)+22 -> 112.16 | L28: =SUM(L22:L27) -> 75.80 | M28: 597.10 | N28: 525.59 | O28: 0.47 | P28: 0.37 | Q28: 0.33 | R28: 0.23 | S28: 34.10 | T28: 32.03 | U28: 186.75 | V28: 151.06 | W28: 9.83 | X28: 7.61
B29: Полдник
A30: 697./04 | B30: Молоко кипяченое с печеньем "Со вкусом топл. молока" | C30: 180/18 | D30: 180/18 | E30: 11.80 | F30: 11.80 | G30: 6.75 | H30: 6.75 | I30: 7.02 | J30: 7.02 | K30: 21.15 | L30: 21.15 | M30: 174.78 | N30: 174.78 | O30: 0.10 | P30: =O30*215/230 -> 0.09 | Q30: 0.29 | R30: =Q30*215/230 -> 0.27 | S30: 2.46 | T30: 2.46 | U30: 275.74 | V30: 275.74 | W30: 0.23 | X30: 0.23
B31: Итого | E31: =SUM(E30) -> 11.80 | F31: =SUM(F30) -> 11.80 | G31: =SUM(G30) -> 6.75 | H31: 6.75 | I31: 7.02 | J31: 7.02 | K31: 21.15 | L31: 21.15 | M31: 174.78 | N31: 174.78 | O31: 0.10 | P31: 0.09 | Q31: 0.29 | R31: 0.27 | S31: 2.46 | T31: 2.46 | U31: =SUM(U30:U30) -> 275.74 | V31: =SUM(V30:V30) -> 275.74 | W31: =SUM(W30:W30) -> 0.23 | X31: =SUM(X30:X30) -> 0.23
B32: Ужин
B33: Десерт фруктовый "Апельсин" | C33: 148 | D33: 159 | E33: 12.45 | F33: 13.39 | G33: 0.58 | H33: 0.50 | I33: 0.00 | J33: 0.00 | K33: 14.32 | L33: 13.55 | M33: 55.51 | N33: 52.51 | O33: 0.02 | P33: 0.02 | Q33: =R33*160/150 -> 0.05 | R33: 0.05 | S33: 23.37 | T33: 22.11 | U33: 24.00 | V33: 24.00 | W33: 3.30 | X33: 3.30
A34: 390./04 | B34: Котлеты рыбные "Любительские" | C34: 75 | D34: 75 | E34: 25.00 | F34: 25.00 | G34: 10.72 | H34: 10.72 | I34: 3.19 | J34: 3.19 | K34: 2.31 | L34: 2.31 | M34: 80.82 | N34: 80.82 | O34: 0.09 | P34: 0.09 | Q34: 0.10 | R34: 0.10 | S34: 2.99 | T34: 2.99 | U34: 23.97 | V34: 23.97 | W34: 0.61 | X34: 0.61
A35: 318/10 | B35: Картофель отварной | C35: 150 | D35: 100 | E35: 7.57 | F35: 5.05 | G35: =H35*150/100 -> 2.88 | H35: 1.92 | I35: =J35*150/100 -> 4.32 | J35: 2.88 | K35: =L35*150/100 -> 23.00 | L35: 15.33 | M35: =N35*150/100 -> 142.35 | N35: 94.90 | O35: =P35*150/100 -> 0.18 | P35: 0.12 | Q35: =R35*150/100 -> 0.08 | R35: 0.05 | S35: =T35*150/100 -> 21.00 | T35: 14.00 | U35: =V35*150/100 -> 16.16 | V35: 10.77 | W35: =X35*150/100 -> 1.37 | X35: 0.91
A36: ТТК-475 | B36: Чай полусладкий | C36: 200 | D36: 150 | E36: 0.55 | F36: 0.41 | G36: 0.18 | H36: 0.13 | I36: =J36*200/150 -> 0.00 | J36: 0.00 | K36: 4.78 | L36: 3.58 | M36: 19.90 | N36: 14.92 | O36: =P36*200/150 -> 0.01 | P36: 0.01 | Q36: =R36*200/150 -> 0.01 | R36: 0.01 | S36: 0.04 | T36: 0.03 | U36: =V36*200/150 -> 5.05 | V36: 3.79 | W36: =X36*200/150 -> 0.84 | X36: 0.63
B37: Хлеб "Рябинушка" | C37: 1/20 | D37: 1/20 | E37: 1.11 | F37: 1.11 | G37: 1.60 | H37: 1.60 | I37: 0.40 | J37: 0.40 | K37: 10.00 | L37: 10.00 | M37: 54.00 | N37: 54.00 | O37: 0.04 | P37: 0.04 | Q37: 0.02 | R37: 0.02 | S37: 0.00 | T37: 0.00 | U37: 7.40 | V37: 7.40 | W37: 0.56 | X37: 0.56
B38: Итого | E38: =SUM(E33:E37) -> 46.68 | F38: =SUM(F33:F37) -> 44.96 | G38: =SUM(G33:G37) -> 15.96 | H38: 14.87 | I38: 7.91 | J38: 6.47 | K38: 54.41 | L38: 44.77 | M38: 352.58 | N38: 297.15 | O38: 0.34 | P38: 0.28 | Q38: 0.26 | R38: 0.23 | S38: 47.40 | T38: 39.13 | U38: =SUM(U33:U37) -> 76.58 | V38: =SUM(V33:V37) -> 69.93 | W38: =SUM(W33:W37) -> 6.68 | X38: =SUM(X33:X37) -> 6.01 | Y38: =SUM(Y33:Y37) -> 0.00
B39: Итого за день | E39: =E38+E31+E28+E20+E17 -> 127.39 | F39: =F38+F31+F28+F20+F17 -> 122.05 | G39: 49.81 | H39: 46.57 | I39: 48.22 | J39: 41.62 | K39: 267.32 | L39: 206.57 | M39: 1593.43 | N39: 1386.39 | O39: 1.02 | P39: 0.82 | Q39: 0.99 | R39: 0.81 | S39: 87.50 | T39: 77.16 | U39: =U38+U31+U28+U20+U17 -> 576.14 | V39: =V38+V31+V28+V20+V17 -> 524.88 | W39: =W38+W31+W28+W20+W17 -> 18.89 | X39: =X38+X31+X28+X20+X17 -> 15.46 | Y39: =Y38+Y31+Y28+Y20+Y17 -> 0.00
B42: ВТОРНИК 31.07
B43: Завтрак
A44: 3./04 | B44: Батон с сыром | C44: 20/5 | D44: 20/5 | E44: 4.15 | F44: 4.15 | G44: 2.90 | H44: 2.90 | I44: 1.95 | J44: 1.95 | K44: 10.40 | L44: 10.40 | M44: 70.75 | N44: 70.75 | O44: 0.08 | P44: =O44*40/60 -> 0.05 | Q44: 0.06 | R44: =Q44*40/60 -> 0.04 | S44: 0.14 | T44: 0.14 | U44: 70.80 | V44: =U44*40/60 -> 47.20 | W44: 0.81 | X44: =W44*40/60 -> 0.54
A45: 161./04 | B45: Суп молочный с пшеном | C45: 200 | D45: 150 | E45: 6.97 | F45: 5.23 | G45: 5.76 | H45: 4.32 | I45: 6.64 | J45: 4.98 | K45: 19.28 | L45: =K45*150/200 -> 14.46 | M45: 160.00 | N45: 120.00 | O45: 0.09 | P45: =O45*150/200 -> 0.07 | Q45: 0.14 | R45: =Q45*150/200 -> 0.11 | S45: 0.90 | T45: 0.67 | U45: 129.32 | V45: =U45*150/200 -> 96.99 | W45: 0.42 | X45: =W45*150/200 -> 0.32
A46: ТТК-305 | B46: Какао с молоком | C46: 180 | D46: 150 | E46: 6.02 | F46: 5.02 | G46: 2.95 | H46: 2.46 | I46: 3.24 | J46: 2.70 | K46: 22.82 | L46: 19.02 | M46: 132.26 | N46: 110.22 | O46: =P46*180/150 -> 0.02 | P46: 0.02 | Q46: =R46*180/150 -> 0.12 | R46: 0.10 | S46: 1.43 | T46: 1.20 | U46: =V46*180/150 -> 109.58 | V46: 91.32 | W46: =X46*180/150 -> 0.36 | X46: 0.30
B47: Итого | E47: =SUM(E44:E46) -> 17.14 | F47: =SUM(F44:F46) -> 14.40 | G47: =SUM(G44:G46) -> 11.61 | H47: 9.68 | I47: 11.83 | J47: 9.63 | K47: 52.50 | L47: 43.88 | M47: 363.01 | N47: 300.97 | O47: 0.19 | P47: 0.14 | Q47: 0.32 | R47: 0.25 | S47: 2.47 | T47: 2.01 | U47: =SUM(U44:U46) -> 309.70 | V47: =SUM(V44:V46) -> 235.51 | W47: =SUM(W44:W46) -> 1.59 | X47: =SUM(X44:X46) -> 1.16 | Y47: =SUM(Y44:Y46) -> 0.00
B48: 2 Завтрак
A49: 707./04 | B49: Сок разливной | C49: 170 | D49: 170 | E49: 4.80 | F49: 4.80 | G49: 0.00 | H49: 0.00 | I49: =J49*180/150 -> 0.00 | J49: 0.00 | K49: 10.20 | L49: 10.20 | M49: 40.80 | N49: 40.80 | O49: =P49*180/150 -> 0.00 | P49: 0.00 | Q49: =R49*180/150 -> 0.02 | R49: 0.02 | S49: 3.40 | T49: 3.40 | U49: =V49*180/150 -> 10.00 | V49: 8.33 | W49: =X49*180/150 -> 0.25 | X49: 0.21
B50: Итого | E50: =SUM(E49) -> 4.80 | F50: =SUM(F49) -> 4.80 | G50: =SUM(G49) -> 0.00 | H50: 0.00 | I50: 0.00 | J50: 0.00 | K50: 10.20 | L50: 10.20 | M50: 40.80 | N50: 40.80 | O50: 0.00 | P50: 0.00 | Q50: 0.02 | R50: 0.02 | S50: 3.40 | T50: 3.40 | U50: =SUM(U49) -> 10.00 | V50: =SUM(V49) -> 8.33 | W50: =SUM(W49) -> 0.25 | X50: =SUM(X49) -> 0.21 | Y50: =SUM(Y49) -> 0.00
B51: Обед
A52: 78./04 | B52: Салат "Зайка" | C52: 50 | D52: 45 | E52: 1.95 | F52: 1.76 | G52: =H52*50/45 -> 0.50 | H52: 0.45 | I52: =J52*50/45 -> 2.50 | J52: 2.25 | K52: =L52*50/45 -> 5.10 | L52: 4.59 | M52: =N52*50/45 -> 45.00 | N52: 40.50 | S52: =T52*50/45 -> 11.20 | T52: 10.08 | U52: 20.69 | V52: 0.00 | W52: 0.78 | X52: 0.00
A53: 142./04 | B53: Суп картофельный с рыбными фрикадельками | C53: 200/25 | D53: 150/25 | E53: 15.29 | F53: 13.80 | G53: 6.72 | H53: 4.61 | I53: 8.51 | J53: 4.77 | K53: 20.31 | L53: 17.89 | M53: 140.12 | N53: 115.50 | O53: 0.14 | P53: 0.11 | Q53: 0.11 | R53: 0.11 | S53: 10.78 | T53: 10.78
A54: ТТК-738 | B54: Котлеты "Крестьянские" | C54: 75 | D54: 75 | E54: 18.30 | F54: 18.30 | G54: 10.00 | H54: 10.00 | I54: 3.00 | J54: 3.00 | K54: 6.00 | L54: 6.00 | M54: 90.00 | N54: 90.00 | O54: 0.07 | P54: 0.07 | Q54: 0.09 | R54: 0.09 | S54: 0.35 | T54: 0.35 | U54: 5.85 | V54: 5.85 | W54: 0.85 | X54: 0.85
A55: 510./04 | B55: Каша гречневая вязкая | C55: 130 | D55: 100 | E55: 3.24 | F55: 2.49 | G55: 3.90 | H55: =G55*100/130 -> 3.00 | I55: 5.85 | J55: =I55*100/130 -> 4.50 | K55: 19.37 | L55: =K55*100/130 -> 14.90 | M55: 145.73 | N55: =M55*100/130 -> 112.10 | O55: =P55*130/100 -> 0.04 | P55: 0.03 | Q55: =R55*130/100 -> 0.01 | R55: 0.01 | S55: =T55*130/100 -> 0.00 | T55: 0.00 | U55: 57.69 | V55: =U55*100/130 -> 44.38 | W55: 4.47 | X55: =W55*100/130 -> 3.44
A56: ТТК-315 | B56: Компот "Фруктовый" из кураги | C56: 200 | D56: 150 | E56: 3.24 | F56: 2.43 | G56: 1.20 | H56: 0.90 | I56: =J56*200/150 -> 0.00 | J56: 0.00 | K56: 31.60 | L56: 23.70 | M56: 126.00 | N56: 94.50 | O56: 0.02 | P56: =O56*150/200 -> 0.02 | Q56: 0.01 | R56: =Q56*150/200 -> 0.01 | S56: 0.00 | T56: 0.00 | U56: 25.91 | V56: =U56*150/200 -> 19.43 | W56: 0.65 | X56: =W56*150/200 -> 0.49
B57: Хлеб "Рябинушка" | C57: 1/20 | D57: 1/20 | E57: 1.11 | F57: 1.11 | G57: 1.60 | H57: 1.60 | I57: 0.40 | J57: 0.40 | K57: 10.00 | L57: 10.00 | M57: 54.00 | N57: 54.00 | O57: 0.04 | P57: 0.04 | Q57: 0.02 | R57: 0.02 | S57: 0.00 | T57: 0.00 | U57: 7.40 | V57: 7.40 | W57: 0.56 | X57: 0.56
B58: Хлеб "Дарницкий" | C58: 1/46,4 | D58: 1/40,6 | E58: 2.09 | F58: 1.83 | G58: 3.25 | H58: 2.84 | I58: 0.46 | J58: =I58*40.6/46 -> 0.41 | K58: 20.88 | L58: 18.27 | M58: 102.08 | N58: 89.32 | O58: 0.06 | P58: 0.04 | Q58: 0.04 | R58: 0.03 | S58: 0.00 | T58: =S58*40.6/46 -> 0.00 | U58: 17.00 | V58: 13.60 | W58: 1.15 | X58: 0.92
B59: Итого | E59: =SUM(E52:E58) -> 45.22 | F59: =SUM(F52:F58) -> 41.72 | G59: =SUM(G52:G58) -> 27.17 | H59: 23.40 | I59: =SUM(I52:I58) -> 20.72 | J59: 15.33 | K59: 113.26 | L59: 95.35 | M59: 702.93 | N59: 595.92 | O59: 0.37 | P59: 0.31 | Q59: 0.28 | R59: 0.27 | S59: 22.33 | T59: 21.21 | U59: =SUM(U52:U58) -> 134.54 | V59: 90.66 | W59: 8.46 | X59: 6.26 | Y59: 0.00 | Z59: 0.00 | AA59: 0.00 | AB59: 0.00
B60: Полдник
A61: 697./04 | B61: Молоко кипяченое | C61: 180 | D61: 180 | E61: 10.36 | F61: 10.36 | G61: 5.31 | H61: 5.31 | I61: 4.50 | J61: 4.50 | K61: 8.91 | L61: 8.91 | M61: 97.38 | N61: 97.38 | O61: 0.07 | P61: 0.07 | Q61: 0.30 | R61: 0.30 | S61: 2.46 | T61: 2.46 | U61: 275.74 | V61: 275.74 | W61: 0.23 | X61: 0.23
B62: Итого | E62: =SUM(E61) -> 10.36 | F62: =SUM(F61) -> 10.36 | G62: =SUM(G61) -> 5.31 | H62: 5.31 | I62: 4.50 | J62: 4.50 | K62: 8.91 | L62: 8.91 | M62: 97.38 | N62: 97.38 | O62: 0.07 | P62: 0.07 | Q62: 0.30 | R62: 0.30 | S62: 2.46 | T62: 2.46 | U62: =SUM(U61) -> 275.74 | V62: =SUM(V61) -> 275.74 | W62: =SUM(W61) -> 0.23 | X62: =SUM(X61) -> 0.23 | Y62: =SUM(Y61) -> 0.00
B63: Ужин
A64: ТТК-868 | B64: Пудинг "Творожный" с яблоками с соус смет "Сластена" | C64: 150/30 | D64: 100/50 | E64: 56.05 | F64: 36.06 | G64: 20.86 | H64: 14.10 | I64: 21.40 | J64: 14.72 | K64: 25.76 | L64: 18.50 | M64: 379.18 | N64: 262.98 | O64: 0.14 | P64: 0.11 | Q64: 0.10 | R64: 0.07 | S64: 2.076 | T64: 1.42 | U64: =V64*150/100 -> 211.92 | V64: 141.28 | W64: =X64*150/100 -> 1.43 | X64: 0.95
A65: ТТК-475 | B65: Чай полусладкий | C65: 200 | D65: 150 | E65: 0.55 | F65: 0.41 | G65: 0.18 | H65: 0.13 | I65: =J65*200/150 -> 0.00 | J65: 0.00 | K65: 4.78 | L65: 3.58 | M65: 19.90 | N65: 14.92 | O65: =P65*200/150 -> 0.01 | P65: 0.01 | Q65: =R65*200/150 -> 0.01 | R65: 0.01 | S65: 0.04 | T65: 0.03 | U65: =V65*200/150 -> 5.05 | V65: 3.79 | W65: =X65*200/150 -> 0.84 | X65: 0.63
B66: Хлеб "Рябинушка" | C66: 1/20 | D66: 1/20 | E66: 1.11 | F66: 1.11 | G66: 1.60 | H66: 1.60 | I66: 0.40 | J66: 0.40 | K66: 10.00 | L66: 10.00 | M66: 54.00 | N66: 54.00 | O66: 0.04 | P66: 0.04 | Q66: 0.02 | R66: 0.02 | S66: 0.00 | T66: 0.00 | U66: 7.40 | V66: 7.40 | W66: 0.56 | X66: 0.56
B67: Итого | E67: =SUM(E64:E66) -> 57.71 | F67: 37.58 | G67: 22.64 | H67: 15.83 | I67: 21.80 | J67: 15.12 | K67: 40.54 | L67: 32.08 | M67: 453.08 | N67: 331.90 | O67: 0.19 | P67: 0.16 | Q67: 0.13 | R67: 0.10 | S67: 2.12 | T67: 1.45 | U67: 224.37 | V67: 152.47 | W67: 2.83 | X67: 2.14
B68: Итого за день | E68: =E67+E62+E59+E50+E47 -> 135.23 | F68: =F67+F62+F59+F50+F47 -> 108.86 | G68: 66.73 | H68: 54.22 | I68: 58.85 | J68: 44.58 | K68: 225.41 | L68: 190.42 | M68: 1657.20 | N68: 1366.97 | O68: 0.83 | P68: 0.68 | Q68: 1.06 | R68: 0.93 | S68: 32.78 | T68: 30.53 | U68: =U67+U62+U59+U50+U47 -> 954.35 | V68: =V67+V62+V59+V50+V47 -> 762.71 | W68: =W67+W62+W59+W50+W47 -> 13.36 | X68: =X67+X62+X59+X50+X47 -> 9.99 | Y68: =Y67+Y62+Y59+Y50+Y47 -> 0.00
B69: СРЕДА 01.08
B70: Завтрак
A71: 3./04 | B71: Батон с маслом с сыром | C71: 20/5/5 | D71: 20/5/5 | E71: 6.68 | F71: 6.68 | G71: 2.93 | H71: 2.93 | I71: 6.05 | J71: 6.05 | K71: 10.40 | L71: 10.40 | M71: 107.77 | N71: 107.77 | O71: 0.08 | P71: =O71*40/60 -> 0.05 | Q71: 0.06 | R71: =Q71*40/60 -> 0.04 | S71: 0.14 | T71: 0.14 | U71: 13.60 | V71: 8.60 | W71: 0.81 | X71: 0.49
A72: 311./04 | B72: Каша молочная манная (жидкая) с маслом | C72: 200/3 | D72: 150/3 | E72: 12.10 | F72: 9.46 | G72: 3.10 | H72: 2.40 | I72: 5.00 | J72: 3.80 | K72: 21.10 | L72: 16.00 | M72: 140.00 | N72: 107.80 | O72: 0.10 | P72: =O72*150/200 -> 0.08 | Q72: 0.25 | R72: =Q72*150/200 -> 0.19 | S72: 0.00 | T72: =S72*153/203 -> 0.00 | U72: 175.20 | V72: 164.90 | W72: 0.90 | X72: =W72*150/200 -> 0.68
A73: 395/10 | B73: Кофейный напиток с молоком | C73: 180 | D73: 150 | E73: 6.01 | F73: 4.84 | G73: 2.85 | H73: 2.34 | I73: 2.41 | J73: 2.00 | K73: 14.36 | L73: 10.63 | M73: 91.00 | N73: 70.00 | O73: =P73*180/150 -> 0.01 | P73: 0.01 | Q73: =R73*180/150 -> 0.08 | R73: 0.07 | S73: 1.17 | T73: =S73*150/180 -> 0.98 | U73: =V73*180/150 -> 57.52 | V73: 47.93 | W73: =X73*180/150 -> 0.26 | X73: 0.22
B74: Итого | E74: =SUM(E71:E73) -> 24.79 | F74: =SUM(F71:F73) -> 20.98 | G74: =SUM(G71:G73) -> 8.88 | H74: 7.67 | I74: 13.46 | J74: 11.85 | K74: 45.86 | L74: 37.03 | M74: 338.77 | N74: 285.57 | O74: 0.19 | P74: 0.14 | Q74: 0.39 | R74: 0.30 | S74: 1.31 | T74: 1.12 | U74: =SUM(U71:U73) -> 246.32 | V74: 221.43 | W74: 1.97 | X74: 1.39 | Y74: 0.00 | Z74: 0.00 | AA74: 0.00 | AB74: 0.00
B75: 2 Завтрак
A76: 698./04 | B76: Кефир | C76: 150 | D76: 150 | E76: 12.36 | F76: 12.36 | G76: =H76*150/135 -> 5.00 | H76: 4.50 | I76: =J76*150/135 -> 4.18 | J76: 3.76 | K76: =L76*150/135 -> 6.67 | L76: 6.00 | M76: 75.76 | N76: 75.76 | O76: =P76*180/150 -> 0.06 | P76: 0.05 | Q76: =R76*180/150 -> 0.31 | R76: 0.26 | S76: =T76*150/135 -> 1.22 | T76: 1.10 | U76: 235.31 | V76: =U76*150/180 -> 196.09 | W76: 0.19 | X76: =W76*150/180 -> 0.16
B77: Итого | E77: =SUM(E76) -> 12.36 | F77: =SUM(F76) -> 12.36 | G77: =SUM(G76) -> 5.00 | H77: 4.50 | I77: 4.18 | J77: 3.76 | K77: 6.67 | L77: 6.00 | M77: 75.76 | N77: 75.76 | O77: 0.06 | P77: 0.05 | Q77: 0.31 | R77: 0.26 | S77: 1.22 | T77: 1.10 | U77: =SUM(U76) -> 235.31 | V77: =SUM(V76) -> 196.09 | W77: =SUM(W76) -> 0.19 | X77: =SUM(X76) -> 0.16 | Y77: =SUM(Y76) -> 0.00
B78: Обед
A79: ТТК-980 | B79: Салат из моркови с бананом | C79: 60 | D79: 50 | E79: 5.12 | F79: 4.27 | G79: 0.79 | H79: 0.66 | I79: 4.10 | J79: 3.42 | K79: 8.29 | L79: 6.90 | M79: 64.30 | N79: 53.58 | O79: 0.02 | P79: =O79*45/60 -> 0.02 | Q79: 0.02 | R79: =Q79*45/60 -> 0.02 | S79: 3.66 | T79: 3.05 | U79: 20.69 | V79: 0.00 | W79: 0.78 | X79: 0.00
A80: 124/04 | B80: Щи из свежей капусты с карт. со смет. | C80: 200/5 | D80: 150/5 | E80: 5.19 | F80: 3.65 | G80: 1.74 | H80: 1.34 | I80: 4.19 | J80: 3.33 | K80: 8.16 | L80: 6.16 | M80: 77.30 | N80: 60.00 | O80: 0.09 | P80: =O80*170/220 -> 0.07 | Q80: 0.10 | R80: =Q80*170/220 -> 0.08 | S80: 14.81 | T80: 11.12 | U80: 37.33 | V80: =U80*170/220 -> 28.85 | W80: 1.39 | X80: =W80*170/220 -> 1.07
A81: ТТК-53 | B81: Мякоть птицы тушеная в соусе | C81: 40/50 | D81: 40/50 | E81: 16.19 | F81: 16.19 | G81: 16.70 | H81: 16.70 | I81: 4.00 | J81: 4.00 | K81: 3.01 | L81: 3.01 | M81: 115.12 | N81: 115.12 | O81: 0.07 | P81: 0.07 | Q81: 0.06 | R81: 0.06 | S81: 0.59 | T81: 0.59 | U81: 10.67 | V81: 10.67 | W81: 1.35 | X81: 1.35
A82: 510./04 | B82: Каша рисовая вязкая | C82: 130 | D82: 100 | E82: 3.63 | F82: 2.79 | G82: 1.95 | H82: =G82*100/130 -> 1.50 | I82: 5.07 | J82: =I82*100/130 -> 3.90 | K82: 19.89 | L82: =K82*100/130 -> 15.30 | M82: 132.99 | N82: =M82*100/130 -> 102.30 | O82: =P82*1.3 -> 0.25 | P82: 0.19 | Q82: =R82*1.3 -> 0.05 | R82: 0.04 | S82: =T82*150/100 -> 0.00 | T82: 0.00 | U82: =V82*1.3 -> 31.63 | V82: 24.33 | W82: =X82*1.3 -> 1.22 | X82: 0.94
A83: ТТК-315 | B83: Компот "Фруктовый" из изюма | C83: 200 | D83: 150 | E83: 3.20 | F83: 2.40 | G83: 0.40 | H83: 0.30 | I83: =J83*200/150 -> 0.00 | J83: 0.00 | K83: 27.40 | L83: 20.50 | M83: 111.20 | N83: 83.20 | O83: 0.02 | P83: =O83*150/200 -> 0.02 | Q83: 0.01 | R83: =Q83*150/200 -> 0.01 | S83: 0.00 | T83: 0.00 | U83: 25.91 | V83: =U83*150/200 -> 19.43 | W83: 0.65 | X83: =W83*150/200 -> 0.49
B84: Хлеб "Рябинушка" | C84: 1/20 | D84: 1/20 | E84: 1.11 | F84: 1.11 | G84: 1.60 | H84: 1.60 | I84: 0.40 | J84: 0.40 | K84: 10.00 | L84: 10.00 | M84: 54.00 | N84: 54.00 | O84: 0.04 | P84: 0.04 | Q84: 0.02 | R84: 0.02 | S84: 0.00 | T84: 0.00 | U84: 7.40 | V84: 7.40 | W84: 0.56 | X84: 0.56
B85: Хлеб "Дарницкий" | C85: 1/46,4 | D85: 1/40,6 | E85: 2.09 | F85: 1.83 | G85: 3.25 | H85: 2.84 | I85: 0.46 | J85: =I85*40.6/46 -> 0.41 | K85: 20.88 | L85: 18.27 | M85: 102.08 | N85: 89.32 | O85: 0.06 | P85: 0.04 | Q85: 0.04 | R85: 0.03 | S85: 0.00 | T85: =S85*40.6/46 -> 0.00 | U85: 17.00 | V85: 13.60 | W85: 1.15 | X85: 0.92
B86: Итого | E86: =SUM(E79:E85) -> 36.53 | F86: =SUM(F79:F85) -> 32.24 | G86: =SUM(G79:G85) -> 26.43 | H86: 24.94 | I86: =SUM(I79:I85)+2 -> 20.22 | J86: =SUM(J79:J85)+0 -> 15.46 | K86: =SUM(K79:K85)+11 -> 108.63 | L86: 80.14 | M86: =SUM(M79:M85)+30 -> 686.99 | N86: =SUM(N79:N85)+0 -> 557.52 | O86: 0.55 | P86: 0.44 | Q86: 0.30 | R86: 0.25 | S86: 19.06 | T86: 14.76 | U86: =SUM(U79:U85) -> 150.63 | V86: =SUM(V79:V85) -> 104.28 | W86: =SUM(W79:W85)-2 -> 5.10 | X86: =SUM(X79:X85)-2 -> 3.33
B87: Полдник
A88: 697./04 | B88: Молоко кипяченое | C88: 180 | D88: 180 | E88: 10.36 | F88: 10.36 | G88: 5.31 | H88: 5.31 | I88: 4.50 | J88: 4.50 | K88: 8.91 | L88: 8.91 | M88: 97.38 | N88: 97.38 | O88: 0.07 | P88: 0.07 | Q88: 0.30 | R88: 0.30 | S88: 2.46 | T88: 2.46 | U88: 275.74 | V88: 275.74 | W88: 0.23 | X88: 0.23
B89: Итого | E89: =SUM(E88) -> 10.36 | F89: =SUM(F88) -> 10.36 | G89: =SUM(G88) -> 5.31 | H89: 5.31 | I89: 4.50 | J89: 4.50 | K89: 8.91 | L89: 8.91 | M89: 97.38 | N89: 97.38 | O89: 0.07 | P89: 0.07 | Q89: 0.30 | R89: 0.30 | S89: 2.46 | T89: 2.46 | U89: =SUM(U88) -> 275.74 | V89: 275.74 | W89: 0.23 | X89: 0.23 | Y89: 0.00 | Z89: 0.00 | AA89: 0.00 | AB89: 0.00
B90: Ужин
B91: Десерт фруктовый "Яблоко" | C91: 150 | D91: 150 | E91: 13.09 | F91: 13.09 | G91: 0.59 | H91: 0.59 | I91: 0.00 | J91: 0.00 | K91: 14.51 | L91: 14.51 | M91: 56.26 | N91: 56.26 | O91: 0.02 | P91: 0.02 | Q91: =R91*160/150 -> 0.05 | R91: 0.05 | S91: 23.69 | T91: 23.69
A92: 541/04 | B92: Рагу овощное | C92: 180 | D92: 150 | E92: 11.33 | F92: 9.44 | G92: =H92*180/150 -> 3.60 | H92: 3.00 | I92: =J92*180/150 -> 14.94 | J92: 12.45 | K92: =L92*180/150 -> 20.70 | L92: 17.25 | M92: =N92*180/150 -> 231.66 | N92: 193.05 | O92: 0.00 | P92: 0.10 | Q92: 0.09 | R92: 0.06 | S92: =T92*180/150 -> 9.48 | T92: 7.90 | U92: 23.97 | V92: 23.97 | W92: 0.61 | X92: 0.61
A93: ТТК-475 | B93: Чай полусладкий | C93: 200 | D93: 150 | E93: 0.55 | F93: 0.41 | G93: 0.18 | H93: 0.13 | I93: =J93*200/150 -> 0.00 | J93: 0.00 | K93: 4.78 | L93: 3.58 | M93: 19.90 | N93: 14.92 | O93: =P93*200/150 -> 0.01 | P93: 0.01 | Q93: =R93*200/150 -> 0.01 | R93: 0.01 | S93: 0.04 | T93: 0.03 | U93: =V93*200/150 -> 5.05 | V93: 3.79 | W93: =X93*200/150 -> 0.84 | X93: 0.63
B94: Хлеб "Рябинушка" | C94: 1/20 | D94: 1/20 | E94: 1.11 | F94: 1.11 | G94: 1.60 | H94: 1.60 | I94: 0.40 | J94: 0.40 | K94: 10.00 | L94: 10.00 | M94: 54.00 | N94: 54.00 | O94: 0.04 | P94: 0.04 | Q94: 0.02 | R94: 0.02 | S94: 0.00 | T94: 0.00 | U94: 7.40 | V94: 7.40 | W94: 0.56 | X94: 0.56
B95: Итого | E95: =SUM(E91:E94) -> 26.08 | F95: 24.05 | G95: 5.97 | H95: 5.32 | I95: 15.34 | J95: 12.85 | K95: 49.99 | L95: 45.34 | M95: 361.82 | N95: 318.23 | O95: 0.07 | P95: 0.17 | Q95: 0.18 | R95: 0.14 | S95: 33.21 | T95: 31.62 | U95: =SUM(U92:U94) -> 36.42 | V95: =SUM(V92:V94) -> 35.16 | W95: =SUM(W92:W94) -> 2.01 | X95: =SUM(X92:X94) -> 1.80 | Y95: =SUM(Y92:Y94) -> 0.00
B96: Итого за день | E96: =E95+E89+E86+E77+E74 -> 110.12 | F96: 99.99 | G96: 51.59 | H96: 47.74 | I96: 57.70 | J96: 48.42 | K96: 220.06 | L96: 177.42 | M96: 1560.72 | N96: 1334.46 | O96: 0.94 | P96: 0.87 | Q96: 1.48 | R96: 1.25 | S96: 57.26 | T96: 51.06 | U96: 944.4 | V96: 832.70 | W96: =W95+W89+W86+W77+W74-4 -> 5.51 | X96: =X95+X89+X86+X77+X74-1 -> 5.90
B97: ЧЕТВЕРГ 02.08
B98: Завтрак
A99: 1./04 | B99: Батон с маслом | C99: 20/5 | D99: 20/5 | E99: 4.03 | F99: 4.03 | G99: 1.63 | H99: 1.63 | I99: 4.70 | J99: 4.70 | K99: 10.40 | L99: 10.40 | M99: 90.42 | N99: 90.42 | O99: 0.08 | P99: 0.05 | Q99: 0.04 | R99: 0.02 | S99: 0.00 | T99: =S99*25/45 -> 0.00 | U99: 13.60 | V99: 8.60 | W99: 0.81 | X99: 0.49
A100: 311./04 | B100: Каша молочная пшеничная (жидкая) с маслом | C100: 200/3 | D100: 150/3 | E100: 11.62 | F100: 9.09 | G100: 4.40 | H100: 4.12 | I100: 4.06 | J100: 4.03 | K100: 26.99 | L100: 25.31 | M100: 162.00 | N100: 154.00 | O100: 0.17 | P100: =O100*150/200 -> 0.13 | Q100: 0.26 | R100: =Q100*150/200 -> 0.20 | S100: 0.00 | T100: 0.00 | U100: 180.02 | V100: 170.02 | W100: 0.75 | X100: =W100*150/200 -> 0.56
A101: ТТК-305 | B101: Какао с молоком | C101: 180 | D101: 150 | E101: 6.02 | F101: 5.02 | G101: 2.95 | H101: 2.46 | I101: 3.24 | J101: 2.70 | K101: 22.82 | L101: 19.02 | M101: 132.26 | N101: 110.22 | O101: =P101*180/150 -> 0.02 | P101: 0.02 | Q101: =R101*180/150 -> 0.12 | R101: 0.10 | S101: 1.43 | T101: 1.20 | U101: =V101*180/150 -> 109.58 | V101: 91.32 | W101: =X101*180/150 -> 0.36 | X101: 0.30
B102: Итого | E102: =SUM(E99:E101) -> 21.67 | F102: =SUM(F99:F101) -> 18.14 | G102: =SUM(G99:G101) -> 8.98 | H102: 8.21 | I102: 12.00 | J102: 11.43 | K102: 60.21 | L102: 54.73 | M102: 384.68 | N102: 354.64 | O102: 0.27 | P102: 0.20 | Q102: 0.42 | R102: 0.32 | S102: 1.43 | T102: 1.20 | U102: =SUM(U99:U101) -> 303.20 | V102: 269.94 | W102: 1.92 | X102: 1.35 | Y102: 0.00 | Z102: 0.00 | AA102: 0.00 | AB102: 0.00
B103: 2 Завтрак
A104: 707./04 | B104: Сок разливной | C104: 170 | D104: 170 | E104: 4.80 | F104: 4.80 | G104: 0.00 | H104: 0.00 | I104: =J104*180/150 -> 0.00 | J104: 0.00 | K104: 10.20 | L104: 10.20 | M104: 40.80 | N104: 40.80 | O104: =P104*180/150 -> 0.00 | P104: 0.00 | Q104: =R104*180/150 -> 0.02 | R104: 0.02 | S104: 3.40 | T104: 3.40 | U104: =V104*180/150 -> 10.00 | V104: 8.33 | W104: =X104*180/150 -> 0.25 | X104: 0.21
B105: Итого | E105: =SUM(E104) -> 4.80 | F105: =SUM(F104) -> 4.80 | G105: =SUM(G104) -> 0.00 | H105: 0.00 | I105: 0.00 | J105: 0.00 | K105: 10.20 | L105: 10.20 | M105: 40.80 | N105: 40.80 | O105: 0.00 | P105: 0.00 | Q105: 0.02 | R105: 0.02 | S105: 3.40 | T105: 3.40 | U105: =SUM(U104) -> 10.00 | V105: =SUM(V104) -> 8.33 | W105: =SUM(W104) -> 0.25 | X105: =SUM(X104) -> 0.21 | Y105: =SUM(Y104) -> 0.00
B106: Обед
B107: Огурец свежий порционный | C107: 60 | D107: 60 | E107: 1.55 | F107: 1.55 | G107: 0.05 | H107: 0.05 | I107: 0.00 | J107: 0.00 | K107: 1.56 | L107: 1.56 | M107: 8.10 | N107: 8.10 | O107: =P107*35/30 -> 0.02 | P107: 0.02 | Q107: =R107*35/30 -> 0.01 | R107: 0.01 | S107: 6.00 | T107: 6.00 | U107: =V107*35/30 -> 5.12 | V107: 4.39 | W107: =X107*35/30 -> 0.35 | X107: 0.30
A108: 139/04 | B108: Суп картофельный с горохом | C108: 200 | D108: 150 | E108: 4.33 | F108: 3.25 | G108: 4.96 | H108: 3.72 | I108: 4.48 | J108: 3.36 | K108: 17.84 | L108: 13.38 | M108: 131.52 | N108: 98.64 | O108: 0.12 | P108: 0.11 | Q108: 0.10 | R108: 0.11 | S108: 4.60 | T108: 3.45 | U108: 18.09 | V108: 18.09 | W108: 1.07 | X108: 1.07
A109: ТТК-653 | B109: Зразы мясные "Любимые" с сыром | C109: 60 | D109: 60 | E109: 16.08 | F109: 16.08 | G109: 6.60 | H109: 6.60 | I109: 9.00 | J109: 9.00 | K109: 1.80 | L109: 1.80 | M109: 115.00 | N109: 115.00 | O109: 0.05 | P109: 0.05 | Q109: 0.08 | R109: 0.08 | S109: 0.35 | T109: 0.35 | U109: 77.36 | V109: 77.36 | W109: 1.17 | X109: 1.17
A110: 516./04 | B110: Макароны отварные | C110: 130 | D110: 100 | E110: 3.35 | F110: 2.58 | G110: =H110*130/100 -> 4.97 | H110: 3.82 | I110: =J110*130/100 -> 4.41 | J110: 3.39 | K110: =L110*130/100 -> 27.03 | L110: 20.79 | M110: =N110*130/100 -> 167.70 | N110: 129.00 | O110: 0.09 | P110: =O110/1.5 -> 0.06 | Q110: 0.06 | R110: =Q110/1.5 -> 0.04 | S110: 0.00 | T110: =S110/1.5 -> 0.00 | U110: 12.89 | V110: =U110/1.5 -> 8.59 | W110: 0.78 | X110: =W110/1.5 -> 0.52
A111: ТТК-317 | B111: Напиток "Фруктовый" из сухофруктов | C111: 200 | D111: 150 | E111: 1.62 | F111: 1.22 | G111: 0.60 | H111: =G111*150/200 -> 0.45 | I111: 0.00 | J111: =I111*150/200 -> 0.00 | K111: 31.40 | L111: =K111*150/200 -> 23.55 | M111: 124.00 | N111: =M111*150/200 -> 93.00 | O111: 0.02 | P111: =O111*150/200 -> 0.02 | Q111: 0.03 | R111: =Q111*150/200 -> 0.02 | S111: 0.45 | T111: =S111*150/200 -> 0.34 | U111: 12.30 | V111: =U111*150/200 -> 9.23 | W111: 2.00 | X111: =W111*150/200 -> 1.50
B112: Хлеб "Рябинушка" | C112: 1/20 | D112: 1/20 | E112: 1.11 | F112: 1.11 | G112: 1.60 | H112: 1.60 | I112: 0.40 | J112: 0.40 | K112: 10.00 | L112: 10.00 | M112: 54.00 | N112: 54.00 | O112: 0.04 | P112: 0.04 | Q112: 0.02 | R112: 0.02 | S112: 0.00 | T112: 0.00 | U112: 7.40 | V112: 7.40 | W112: 0.56 | X112: 0.56
B113: Хлеб "Дарницкий" | C113: 1/46,4 | D113: 1/40,6 | E113: 2.09 | F113: 1.83 | G113: 3.25 | H113: 2.84 | I113: 0.46 | J113: =I113*40.6/46 -> 0.41 | K113: 20.88 | L113: 18.27 | M113: 102.08 | N113: 89.32 | O113: 0.06 | P113: 0.04 | Q113: 0.04 | R113: 0.03 | S113: 0.00 | T113: =S113*40.6/46 -> 0.00 | U113: 17.00 | V113: 13.60 | W113: 1.15 | X113: 0.92
B114: Итого | E114: =SUM(E107:E113) -> 30.13 | F114: =SUM(F107:F113) -> 27.62 | G114: =SUM(G107:G113) -> 22.02 | H114: =SUM(H107:H113) -> 19.08 | I114: =SUM(I107:I113)+2 -> 20.75 | J114: =SUM(J107:J113)+0 -> 16.56 | K114: =SUM(K107:K113)+11 -> 121.51 | L114: =SUM(L107:L113) -> 89.35 | M114: 702.40 | N114: 587.06 | O114: 0.40 | P114: 0.34 | Q114: 0.34 | R114: 0.31 | S114: 11.40 | T114: 10.14 | U114: 150.16 | V114: 138.66 | W114: 7.08 | X114: 6.04 | Y114: 0.00
B115: Полдник
A116: 697./04 | B116: Молоко кипяченое | C116: 180 | D116: 180 | E116: 10.36 | F116: 10.36 | G116: 5.31 | H116: 5.31 | I116: 4.50 | J116: 4.50 | K116: 8.91 | L116: 8.91 | M116: 97.38 | N116: 97.38 | O116: 0.07 | P116: 0.07 | Q116: 0.30 | R116: 0.30 | S116: 2.46 | T116: 2.46 | U116: 275.74 | V116: 275.74 | W116: 0.23 | X116: 0.23
B117: Итого | E117: =SUM(E116) -> 10.36 | F117: =SUM(F116) -> 10.36 | G117: =SUM(G116) -> 5.31 | H117: 5.31 | I117: 4.50 | J117: 4.50 | K117: 8.91 | L117: 8.91 | M117: 97.38 | N117: 97.38 | O117: 0.07 | P117: 0.07 | Q117: 0.30 | R117: 0.30 | S117: 2.46 | T117: 2.46 | U117: =SUM(#REF!) ->  | V117: =SUM(#REF!) ->  | W117: =SUM(#REF!) ->  | X117: =SUM(#REF!) -> 
B118: Ужин
A119: ТТК-730 | B119: Фрикад. рыбные "Капелька" с соус. томатн | C119: 50/30 | D119: 50/30 | E119: 8.53 | F119: 8.53 | G119: 7.28 | H119: 7.28 | I119: 5.44 | J119: 5.44 | K119: 6.17 | L119: 6.17 | M119: 102.70 | N119: 102.70 | O119: 0.09 | P119: 0.09 | Q119: 0.10 | R119: 0.10 | S119: 3.59 | T119: 3.59
A120: 520./04 | B120: Картофельное пюре | C120: 150 | D120: 130 | E120: 8.02 | F120: 6.95 | G120: =H120*150/130 -> 3.00 | H120: 2.60 | I120: =J120*150/130 -> 4.80 | J120: 4.16 | K120: =L120*150/130 -> 20.40 | L120: 17.68 | M120: =N120*150/130 -> 140.00 | N120: 121.33 | O120: 0.16 | P120: 0.00 | Q120: 0.10 | R120: =Q120/1.5 -> 0.07 | S120: =T120*150/130 -> 18.10 | T120: 15.69
A121: ТТК-475 | B121: Чай полусладкий | C121: 200 | D121: 150 | E121: 0.55 | F121: 0.41 | G121: 0.18 | H121: 0.13 | I121: =J121*200/150 -> 0.00 | J121: 0.00 | K121: 4.78 | L121: 3.58 | M121: 19.90 | N121: 14.92 | O121: =P121*200/150 -> 0.01 | P121: 0.01 | Q121: =R121*200/150 -> 0.01 | R121: 0.01 | S121: 0.04 | T121: 0.03 | U121: =V121*200/150 -> 5.05 | V121: 3.79 | W121: =X121*200/150 -> 0.84 | X121: 0.63
B122: Хлеб "Рябинушка" | C122: 1/20 | D122: 1/20 | E122: 1.11 | F122: 1.11 | G122: 1.60 | H122: 1.60 | I122: 0.40 | J122: 0.40 | K122: 10.00 | L122: 10.00 | M122: 54.00 | N122: 54.00 | O122: 0.04 | P122: 0.04 | Q122: 0.02 | R122: 0.02 | S122: 0.00 | T122: 0.00 | U122: 7.40 | V122: 7.40 | W122: 0.56 | X122: 0.56
B123: Итого | E123: =SUM(E119:E122) -> 18.21 | F123: =SUM(F119:F122) -> 17.00 | G123: =SUM(G119:G122) -> 12.06 | H123: 11.61 | I123: 10.64 | J123: 10.00 | K123: 41.35 | L123: 37.43 | M123: 316.60 | N123: 292.95 | O123: 0.30 | P123: 0.14 | Q123: 0.23 | R123: 0.20 | S123: 21.73 | T123: 19.31 | U123: =SUM(U119:U122) -> 12.45 | V123: =SUM(V119:V122) -> 11.19 | W123: =SUM(W119:W122) -> 1.40 | X123: =SUM(X119:X122) -> 1.19 | Y123: =SUM(Y119:Y122) -> 0.00
B124: Итого за день | E124: =E123+E117+E114+E105+E102 -> 85.17 | F124: =F123+F117+F114+F105+F102 -> 77.92 | G124: =G123+G117+G114+G105+G102 -> 48.37 | H124: 44.21 | I124: 47.89 | J124: 42.49 | K124: 242.18 | L124: 200.62 | M124: 1541.86 | N124: 1372.83 | O124: 1.05 | P124: 0.74 | Q124: 1.32 | R124: 1.14 | S124: 40.42 | T124: 36.51 | U124: =U123+U117+U114+U105+U102 ->  | V124: =V123+V117+V114+V105+V102 ->  | W124: =W123+W117+W114+W105+W102 ->  | X124: =X123+X117+X114+X105+X102 ->  | Y124: =Y123+Y117+Y114+Y105+Y102 -> 0.00
B125: ПЯТНИЦА 03.08
B126: Завтрак
A127: 3./04 | B127: Батон с сыром | C127: 20/5 | D127: 20/5 | E127: 4.15 | F127: 4.15 | G127: 2.90 | H127: 2.90 | I127: 1.95 | J127: 1.95 | K127: 10.40 | L127: 10.40 | M127: 70.75 | N127: 70.75 | O127: 0.08 | P127: =O127*40/60 -> 0.05 | Q127: 0.06 | R127: =Q127*40/60 -> 0.04 | S127: 0.14 | T127: 0.14 | U127: 70.80 | V127: =U127*40/60 -> 47.20 | W127: 0.81 | X127: =W127*40/60 -> 0.54
A128: 337./04 | B128: Яйцо вареное | C128: 1 шт | D128: 1 шт | E128: 3.92 | F128: 3.92 | G128: 5.10 | H128: 5.10 | I128: 4.60 | J128: 4.60 | K128: 0.30 | L128: 0.30 | M128: 63.00 | N128: 63.00 | O128: 0.03 | P128: 0.03 | Q128: 0.18 | R128: 0.18 | S128: 0.00 | T128: 0.00 | U128: 22.00 | V128: 22.00 | W128: 1.08 | X128: 1.08
A129: 161./04 | B129: Суп молочный с рисом | C129: 200 | D129: 150 | E129: 6.95 | F129: 5.21 | G129: 5.76 | H129: 4.32 | I129: 6.64 | J129: 4.98 | K129: 19.28 | L129: =K129*150/200 -> 14.46 | M129: 160.00 | N129: 120.00 | O129: 0.09 | P129: =O129*150/200 -> 0.07 | Q129: 0.14 | R129: =Q129*150/200 -> 0.11 | S129: 0.90 | T129: 0.67 | U129: 129.32 | V129: =U129*150/200 -> 96.99 | W129: 0.42 | X129: =W129*150/200 -> 0.32
A130: 395/10 | B130: Кофейный напиток с молоком | C130: 180 | D130: 150 | E130: 6.01 | F130: 4.84 | G130: 2.85 | H130: 2.34 | I130: 2.41 | J130: 2.00 | K130: 14.36 | L130: 10.63 | M130: 91.00 | N130: 70.00 | O130: =P130*180/150 -> 0.01 | P130: 0.01 | Q130: =R130*180/150 -> 0.08 | R130: 0.07 | S130: 1.17 | T130: =S130*150/180 -> 0.98 | U130: =V130*180/150 -> 57.52 | V130: 47.93 | W130: =X130*180/150 -> 0.26 | X130: 0.22
B131: Итого | E131: =SUM(E127:E130) -> 21.03 | F131: =SUM(F127:F130) -> 18.12 | G131: =SUM(G127:G130) -> 16.61 | H131: 14.66 | I131: 15.60 | J131: 13.53 | K131: 44.34 | L131: 35.79 | M131: 384.75 | N131: 323.75 | O131: 0.21 | P131: 0.16 | Q131: 0.46 | R131: 0.40 | S131: 2.21 | T131: 1.79 | U131: =SUM(U127:U130) -> 279.64 | V131: =SUM(V127:V130) -> 214.12 | W131: =SUM(W127:W130) -> 2.57 | X131: =SUM(X127:X130) -> 2.16
B132: 2 завтрак
A133: 698./04 | B133: Кефир | C133: 150 | D133: 150 | E133: 12.36 | F133: 12.36 | G133: =H133*150/135 -> 5.00 | H133: 4.50 | I133: =J133*150/135 -> 4.18 | J133: 3.76 | K133: =L133*150/135 -> 6.67 | L133: 6.00 | M133: 75.76 | N133: 75.76 | O133: =P133*180/150 -> 0.06 | P133: 0.05 | Q133: =R133*180/150 -> 0.31 | R133: 0.26 | S133: =T133*150/135 -> 1.22 | T133: 1.10 | U133: 235.31 | V133: =U133*150/180 -> 196.09 | W133: 0.19 | X133: =W133*150/180 -> 0.16
B134: Итого | E134: =SUM(E133) -> 12.36 | F134: =SUM(F133) -> 12.36 | G134: =SUM(G133) -> 5.00 | H134: 4.50 | I134: 4.18 | J134: 3.76 | K134: 6.67 | L134: 6.00 | M134: 75.76 | N134: 75.76 | O134: 0.06 | P134: 0.05 | Q134: 0.31 | R134: 0.26 | S134: 1.22 | T134: 1.10 | U134: =SUM(U133) -> 235.31 | V134: =SUM(V133) -> 196.09 | W134: =SUM(W133) -> 0.19 | X134: =SUM(X133) -> 0.16 | Y134: =SUM(Y133) -> 0.00
B135: Обед
A136: ТТК-637 | B136: Салат из свеж. кап. с огурцом | C136: 50 | D136: 45 | E136: 1.15 | F136: 1.04 | G136: =H136*50/45 -> 0.72 | H136: 0.65 | I136: =J136*50/45 -> 2.24 | J136: 2.02 | K136: =L136*50/45 -> 2.20 | L136: 1.98 | M136: =N136*50/45 -> 32.00 | N136: 28.80 | O136: 0.02 | P136: =O136*30/40 -> 0.02 | Q136: 0.02 | R136: =Q136*30/40 -> 0.02 | S136: =T136*50/45 -> 19.30 | T136: 17.37 | U136: 5.60 | V136: =U136*30/40 -> 4.20 | W136: 0.56 | X136: =W136*30/40 -> 0.42
A137: 148./04 | B137: Суп -лапша по-домашнему с мясными фрикадельками | C137: 200/25 | D137: 150/25 | E137: 14.50 | F137: 13.19 | G137: 7.64 | H137: =G137*175/225 -> 5.94 | I137: 7.74 | J137: =I137*175/225 -> 6.02 | K137: 11.42 | L137: =K137*175/225 -> 8.88 | M137: 148.00 | N137: =M137*175/225 -> 115.11 | O137: 0.21 | P137: =O137*150/200 -> 0.16 | Q137: 0.05 | R137: =Q137*150/200 -> 0.04 | S137: 0.65 | T137: =S137*175/225 -> 0.51 | U137: 32.50 | V137: =U137*185/235 -> 25.59 | W137: 1.59 | X137: =W137*185/235 -> 1.25
A138: ТТК-739 | B138: Котлеты "Татарские" | C138: 75 | D138: 75 | E138: 17.27 | F138: 17.27 | G138: 9.00 | H138: 9.00 | I138: 10.00 | J138: 10.00 | K138: 3.00 | L138: 3.00 | M138: 139.00 | N138: 139.00 | O138: 0.07 | P138: 0.07 | Q138: 0.09 | R138: 0.09 | S138: 0.34 | T138: 0.34 | U138: 12.73 | V138: 12.73 | W138: 0.74 | X138: 0.74
A139: ТТК-446 | B139: Пюре "Янтарное" | C139: 130 | D139: 100 | E139: 3.40 | F139: 2.62 | G139: 27.52 | H139: =G139*100/130 -> 21.17 | I139: 9.02 | J139: =I139*100/130 -> 6.94 | K139: 60.74 | L139: =K139*100/130 -> 46.72 | M139: 434.23 | N139: =M139*100/130 -> 334.02 | O139: 0.57 | P139: =O139*100/130 -> 0.44 | Q139: 0.12 | R139: =Q139*100/130 -> 0.09 | S139: 0.00 | T139: =S139*100/130 -> 0.00 | U139: =V139*130/100 -> 11.97 | V139: 9.21 | W139: =X139*130/100 -> 0.96 | X139: 0.74
A140: ТТК-315 | B140: Компот "Фруктовый" из изюма | C140: 200 | D140: 150 | E140: 3.20 | F140: 2.40 | G140: 0.40 | H140: 0.30 | I140: =J140*200/150 -> 0.00 | J140: 0.00 | K140: 27.40 | L140: 20.50 | M140: 111.20 | N140: 83.20 | O140: 0.02 | P140: =O140*150/200 -> 0.02 | Q140: 0.01 | R140: =Q140*150/200 -> 0.01 | S140: 0.00 | T140: 0.00 | U140: 11.50 | V140: =U140*150/200 -> 8.63 | W140: 0.48 | X140: =W140*150/200 -> 0.36
B141: Хлеб "Рябинушка" | C141: 1/20 | D141: 1/20 | E141: 1.11 | F141: 1.11 | G141: 1.60 | H141: 1.60 | I141: 0.40 | J141: 0.40 | K141: 10.00 | L141: 10.00 | M141: 54.00 | N141: 54.00 | O141: 0.04 | P141: 0.04 | Q141: 0.02 | R141: 0.02 | S141: 0.00 | T141: 0.00 | U141: 7.40 | V141: 7.40 | W141: 0.56 | X141: 0.56
B142: Хлеб "Дарницкий" | C142: 1/46,4 | D142: 1/40,6 | E142: 2.09 | F142: 1.83 | G142: 3.25 | H142: 2.84 | I142: 0.46 | J142: =I142*40.6/46 -> 0.41 | K142: 20.88 | L142: 18.27 | M142: 102.08 | N142: 89.32 | O142: 0.06 | P142: 0.04 | Q142: 0.04 | R142: 0.03 | S142: 0.00 | T142: =S142*40.6/46 -> 0.00 | U142: 17.00 | V142: 13.60 | W142: 1.15 | X142: 0.92
B143: Итого | E143: =SUM(E136:E142) -> 42.72 | F143: =SUM(F136:F142) -> 39.46 | G143: =SUM(G136:G142) -> 50.13 | H143: 41.50 | I143: =SUM(I136:I142)+2 -> 31.86 | J143: =SUM(J136:J142)+0 -> 25.78 | K143: =SUM(K136:K142)+11 -> 146.64 | L143: 109.36 | M143: 1020.51 | N143: 843.45 | O143: 0.99 | P143: 0.78 | Q143: 0.35 | R143: 0.29 | S143: 20.29 | T143: 18.22 | U143: =SUM(U136:U142) -> 98.70 | V143: =SUM(V136:V142) -> 81.35 | W143: =SUM(W136:W142) -> 6.04 | X143: =SUM(X136:X142) -> 4.99 | Y143: =SUM(Y136:Y142) -> 0.00
B144: Полдник
A145: 697./04 | B145: Молоко кипяченое | C145: 180 | D145: 180 | E145: 10.36 | F145: 10.36 | G145: 5.31 | H145: 5.31 | I145: 4.50 | J145: 4.50 | K145: 8.91 | L145: 8.91 | M145: 97.38 | N145: 97.38 | O145: 0.07 | P145: 0.07 | Q145: 0.30 | R145: 0.30 | S145: 2.46 | T145: 2.46 | U145: 275.74 | V145: 275.74 | W145: 0.23 | X145: 0.23
A146: 733/04 | B146: Оладьи | C146: 50 | D146: 50 | E146: 1.02 | F146: 1.02 | G146: 3.04 | H146: 3.04 | I146: 2.19 | J146: 2.19 | K146: 19.54 | L146: 19.54 | M146: 110.10 | N146: 110.10 | S146: 0.00 | T146: 0.00
B147: Итого | E147: =SUM(E145:E146) -> 11.38 | F147: =SUM(F145:F146) -> 11.38 | G147: =SUM(G145:G146) -> 8.35 | H147: 8.35 | I147: 6.69 | J147: 6.69 | K147: 28.45 | L147: 28.45 | M147: 207.48 | N147: 207.48 | O147: 0.07 | P147: 0.07 | Q147: 0.30 | R147: 0.30 | S147: 2.46 | T147: 2.46 | U147: =SUM(U145:U145) -> 275.74 | V147: =SUM(V145:V145) -> 275.74 | W147: =SUM(W145:W145) -> 0.23 | X147: =SUM(X145:X145) -> 0.23
B148: Ужин
B149: Десерт фруктовый "Банан" | C149: 162 | D149: 163 | E149: 11.88 | F149: 11.88 | G149: 2.22 | H149: 2.22 | I149: 0.00 | J149: 0.00 | K149: 33.15 | L149: 33.15 | M149: 162.52 | N149: 162.52 | O149: 0.02 | P149: 0.02 | Q149: =R149*160/150 -> 0.05 | R149: 0.05 | S149: 17.00 | T149: 17.00 | U149: 20.69 | V149: 0.00 | W149: 0.78 | X149: 0.00
A150: ТТК-341 | B150: Запеканка "Сладкоежка" с соусом молочным сладким | C150: 150/50 | D150: 100/50 | E150: 49.31 | F150: 33.78 | G150: 22.93 | H150: 15.87 | I150: 17.40 | J150: 12.95 | K150: 38.62 | L150: 29.72 | M150: 402.90 | N150: 299.05 | O150: =P150*150/100 -> 0.11 | P150: 0.07 | Q150: =R150*150/100 -> 0.44 | R150: 0.29 | S150: 0.00 | T150: 0.00 | U150: =V150*130/100 -> 11.97 | V150: 9.21 | W150: =X150*130/100 -> 0.96 | X150: 0.74
A151: ТТК-475 | B151: Чай полусладкий | C151: 200 | D151: 150 | E151: 0.55 | F151: 0.41 | G151: 0.18 | H151: 0.13 | I151: =J151*200/150 -> 0.00 | J151: 0.00 | K151: 4.78 | L151: 3.58 | M151: 19.90 | N151: 14.92 | O151: =P151*200/150 -> 0.01 | P151: 0.01 | Q151: =R151*200/150 -> 0.01 | R151: 0.01 | S151: 0.04 | T151: 0.03 | U151: =V151*200/150 -> 5.05 | V151: 3.79 | W151: =X151*200/150 -> 0.84 | X151: 0.63
B152: Хлеб "Рябинушка" | C152: 1/20 | D152: 1/20 | E152: 1.11 | F152: 1.11 | G152: 1.60 | H152: 1.60 | I152: 0.40 | J152: 0.40 | K152: 10.00 | L152: 10.00 | M152: 54.00 | N152: 54.00 | O152: 0.04 | P152: 0.04 | Q152: 0.02 | R152: 0.02 | S152: 0.00 | T152: 0.00 | U152: 7.40 | V152: 7.40 | W152: 0.56 | X152: 0.56
B153: Итого | E153: =SUM(E149:E152) -> 62.85 | F153: =SUM(F149:F152) -> 47.18 | G153: =SUM(G149:G152) -> 26.93 | H153: 19.82 | I153: 17.80 | J153: 13.35 | K153: 86.55 | L153: 76.45 | M153: 639.32 | N153: 530.49 | O153: 0.18 | P153: 0.14 | Q153: 0.52 | R153: 0.37 | S153: 17.04 | T153: 17.03 | U153: =SUM(U149:U152) -> 45.12 | V153: =SUM(V149:V152) -> 20.40 | W153: =SUM(W149:W152) -> 3.14 | X153: =SUM(X149:X152) -> 1.93
B154: Итого за день | E154: =E153+E147+E143+E134+E131 -> 150.34 | F154: =F153+F147+F143+F134+F131 -> 128.50 | G154: 107.02 | H154: 88.83 | I154: 76.13 | J154: 63.11 | K154: 312.65 | L154: 256.05 | M154: 2327.82 | N154: 1980.93 | O154: 1.51 | P154: 1.20 | Q154: 1.95 | R154: 1.62 | S154: 43.22 | T154: 40.59 | U154: =U153+U147+U143+U134+U131 -> 934.51 | V154: =V153+V147+V143+V134+V131 -> 787.70 | W154: =W153+W147+W143+W134+W131 -> 12.18 | X154: =X153+X147+X143+X134+X131 -> 9.47 | Y154: =Y153+Y147+Y143+Y134+Y131 -> 0.00
E161: Цена | G161: Пищевые вещества (г) | M161: Энерг. ценность (ккал) | O161: Витамины (мг) | U161: Минеральные вещества (мг)
G162: Белки | I162: Жиры | K162: Углеводы | O162: В1 | Q162: В2 | S162: С | U162: Ca | W162: Fe
E163: сад | F163: ясли | G163: сад | H163: ясли | I163: сад | J163: ясли | K163: сад | L163: ясли | M163: сад | N163: ясли | O163: сад | P163: ясли | Q163: сад | R163: ясли | S163: сад | T163: ясли | U163: сад | V163: ясли | W163: сад | X163: ясли
B164: ИТОГО ЗА НЕДЕЛЮ: | E164: =E154+E124+E96+E68+E39 -> 608.25 | F164: =F154+F124+F96+F68+F39 -> 537.32 | G164: =G154-35+G124+G96+G68+G39 -> 288.53 | H164: =H154+H124-32+H96+H68-25+H39 -> 224.57 | I164: =I154+I124+I96+I68+I39 -> 288.79 | J164: =J154+J124+J96+J68+J39 -> 240.21 | K164: =K154+K124+K96+K68+K39 -> 1267.6 | L164: =L154+L124+L96+L68+L39 -> 1031.1 | M164: =M154+M124+M96+M68+M39 -> 8681.0 | N164: =N154+N124+N96+N68+N39-100 -> 7341.6 | O164: =O154+O124+O96+O68+O39 -> 5.35 | P164: =P154+P124+P96+P68+P39 -> 4.30 | Q164: =Q154+Q124+Q96+Q68+Q39 -> 6.80 | R164: =R154+R124+R96+R68+R39 -> 5.75 | S164: =S154-37+S124+S96+S68+S39 -> 224.18 | T164: =T154-25+T124+T96+T68+T39 -> 210.85 | U164: =U154+U124+U96+U68+U39 ->  | V164: =V154+V124+V96+V68+V39 ->  | W164: =W154+W124+W96+W68+W39 ->  | X164: =X154+X124+X96+X68+X39 -> 
B165: В среднем в день | E165: =E164/5 -> 121.65 | F165: 107.47 | G165: =G164/5 -> 57.71 | H165: 44.91 | I165: 57.76 | J165: 48.04 | K165: 253.52 | L165: 206.22 | M165: =M164/5 -> 1736.21 | N165: =N164/5 -> 1468.32 | O165: 1.07 | P165: =P164/5 -> 0.86 | Q165: 1.36 | R165: 1.15 | S165: 44.84 | T165: 42.17 | U165: =U164/5 ->  | V165: =V164/5 -> 
B169: Рекомендуемые нормы физиологических потребностей для детей с 3 до 7 лет в пищевых веществах и энергии согласно СанПиН 2.4.1.3049 - 13 "Санитарно - эпидемиологические требования
B170: к устройству, содержанию и организации режима работы в дошкольных организациях"
B173: Генеральный директор | J173: В.П. Гусева
B175: Начальник производственного отдела | J175: Е.В. Сашинская
B177: Экономист по ценам | J177: Н.В. Журавлева
B179: Зам. начальника производственного отдела | J179: Н.П. Яранцева
